Cogmind - Beta 16.1 @@@ ROGUE MODE // 2026.03.16 @ 12:08:47 Player: Rune Result: Destroyed by S-10 Pest with Light Assault Rifle Performance ------------- Evolutions (0) 0 Regions Visited (2) 400 Robots Destroyed (16) 80 Value Destroyed (293) 293 Prototype IDs (0) 0 Alien Tech Used (0) 0 Bonus (-74) -74 TOTAL SCORE: 699 Bonus ------- Follower Combat Kills 42 Friendly Fire -116 Cogmind --------- Core Integrity 0/250 Matter 272/300 Energy 66/100 System Corruption 0% Temperature Cool (21) Movement Walking (190) Ox1 Location -10/Mines Parts ------- > --- POWER (1) -------- (None) > --- PROPULSION (2) --- Aluminum Leg > --- UTILITY (2) ------ Heat Sink Small Storage Unit > --- WEAPON (2) ------- Beamcaster Light Cannon > --- INVENTORY (8) ---- Light Angular Momentum Engine Faulty Experimental Sensor Array Assault Rifle Light Assault Rifle Mining Laser Peak State ------------ > --- POWER ------------ Light Nuclear Core > --- PROPULSION ------- Aluminum Leg Carbon-fiber Leg > --- UTILITY ---------- Heat Sink Small Storage Unit > --- WEAPON ----------- Beamcaster Light Assault Rifle > --- INVENTORY -------- Experimental Sensor Array Assault Rifle Light Cannon Mining Laser [Rating: 16] Favorites ----------- Power Light Nuclear Core Engine Light Ion Engine Power Core Light Nuclear Core Propulsion Aluminum Leg Leg Aluminum Leg Utility Small Storage Unit Device Heat Sink Storage Small Storage Unit Weapon Light Assault Rifle Energy Gun Beamcaster Ballistic Gun Light Assault Rifle Ballistic Cannon Light Cannon Build | -11 -10 -10 ------- Run | Yrd Mat Min Slots Evolved . | . . . Power . | . . . Propulsion . | . . . Utility . | . . . Weapon . | . . . Parts Attached 15 | 6 . 9 Power 4 | 1 . 3 Engine 3 | 1 . 2 Core 1 | . . 1 Reactor . | . . . Propulsion 4 | 2 . 2 Treads . | . . . Leg 4 | 2 . 2 Wheel . | . . . Hover . | . . . Flight . | . . . Utility 2 | 1 . 1 Device 1 | . . 1 Storage 1 | 1 . . Processor . | . . . Hackware . | . . . Protection . | . . . Artifact . | . . . Weapon 5 | 2 . 3 Energy Gun 2 | 1 . 1 Energy Cannon . | . . . Ballistic Gun 2 | 1 . 1 Ballistic Cannon 1 | . . 1 Launcher . | . . . Special Weapon . | . . . Impact Weapon . | . . . Slashing Weapon . | . . . Piercing Weapon . | . . . Special Melee Weapon . | . . . Unidentified Prototypes . | . . . Parts Lost 2 | . . 2 Power 1 | . . 1 Propulsion 1 | . . 1 Utility . | . . . Weapon . | . . . Highest Loss Streak 2 | . . 2 To Critical Strikes . | . . . Average Backups 3 | 1 2 4 Power . | . 1 . Propulsion . | . . . Utility . | . . . Weapon 2 | . 1 2 Tool/Special . | . . . Unused Backups 4 | . . 4 Power 1 | . . 1 Propulsion 1 | . . 1 Utility 1 | . . 1 Weapon 1 | . . 1 Tool/Special . | . . . Average Slot Usage (%) 94 | . 85 96 Engine 6 | . 14 4 Core 6 | . . 9 Leg 27 | . 28 27 Device 8 | . . 11 Storage 14 | . 14 14 Energy Gun 11 | . 14 10 Ballistic Gun 12 | . 14 11 Ballistic Cannon 3 | . . 5 Peak Build Rating 16 | 6 6 16 Average Rating 11 | 4 6 13 On Entrance 4 | . 6 6 Avg Prop Armor Cover (%) . | . . . Naked Turns . | . . . Heaviest Build 19 | 11 11 19 Greatest Support 25 | 20 20 25 Greatest Overweight (x) . | . . . Average Overweight (x) . | . . . Largest Inventory Capacity 8 | 8 8 8 Average Capacity 7 | 7 8 8 Most Carried 7 | 2 3 7 Average Carried 3 | 1 2 3 Final Capacity 8 | 8 8 8 Final Carried 5 | 2 3 5 Class Distribution -------------------- 57% | Scavenger-Mutant 42% | Mutant Dominant Class ---------------- Mutant | -10/Materials Scavenger-Mutant | -10/Mines Resources | -11 -10 -10 ----------- Run | Yrd Mat Min Matter Collected 477 | 232 34 211 Remotely . | . . . Salvage Created 398 | . 34 364 Parts 24 | . 4 20 Haulers Intercepted . | . . . Recyclers Shooed 1 | . 1 . Parts Field Recycled . | . . . Retrieved Matter . | . . . Parts Self-Destructed . | . . . Prevented . | . . . Parts Restored . | . . . Kills | -11 -10 -10 ------- Run | Yrd Mat Min Combat Hostiles Destroyed 14 | . 2 12 Guns 11 | . 2 9 Cannons 3 | . . 3 Classes Destroyed 3 | . 1 2 Tunneler 1 | . . 1 Swarmer 9 | . 2 7 Grunt 5 | . . 5 Thug 1 | . . 1 Best Kill Streak 3 | . 2 3 Combat Bots Only 3 | . 2 3 Max Kills in Single Turn 1 | . 1 1 Gunslinging . | . . . Exploded . | . . . Melee . | . . . Uniques/NPCs Destroyed . | . . . Combat | -11 -10 -10 -------- Run | Yrd Mat Min Hostile Shots Fired 113 | . 22 91 Missed 29 | . 2 27 Hits 84 | . 20 64 Projectile 84 | . 20 64 Critical Strikes 3 | . . 3 Damage Taken 848 | . 161 687 Core 259 | . 45 214 Absorbed by Shields . | . . . Core Remaining (%) 100 | 100 . . Volleys Fired 49 | . 6 43 Largest 2 | . 2 2 Hottest 105 | . 70 105 Shots Fired 98 | . 12 86 Gun 77 | . 12 65 Cannon 21 | . . 21 Launcher . | . . . Special . | . . . Kinetic 64 | . 6 58 Thermal 34 | . 6 28 Explosive . | . . . Electromagnetic . | . . . Robot Hit Streak 6 | . 2 6 Robot Miss Streak 4 | . 4 4 Penetration Max . | . . . Secondary Targets 2 | . 1 1 Max Gunslinging Chain 1 | . 1 1 Shots Hit Robots 56 | . 4 52 Core Hits 23 | . 3 20 Critical Kills . | . . . Critical Parts Destroyed . | . . . Critical Strikes 1 | . . 1 Burn 1 | . . 1 Melee Attacks . | . . . Impact . | . . . Slashing . | . . . Piercing . | . . . Sneak Attacks . | . . . Combat Hostiles . | . . . Follow-up Attacks . | . . . Damage Inflicted 839 | . 50 789 Guns 577 | . 46 531 Cannons 249 | . . 249 Explosions . | . . . Melee . | . . . Ramming 13 | . 4 9 Kinetic 465 | . 21 444 Thermal 361 | . 25 336 Explosive . | . . . Electromagnetic . | . . . Impact . | . . . Slashing . | . . . Piercing . | . . . Highest Corruption . | . . . Average Corruption . | . . . Corruption Purged . | . . . Corruption Blocked . | . . . Overload Shots . | . . . Overflow Damage . | . . . Projectiles . | . . . Explosions . | . . . Melee . | . . . Knockbacks 4 | . . 4 Impact . | . . . Kinetic 4 | . . 4 Secondary . | . . . Self-Inflicted Damage . | . . . Shots . | . . . Rammed . | . . . Targets Rammed 3 | . 1 2 Kicked 3 | . 1 2 Crushed . | . . . Highest Temperature 210 | . 50 210 Average Temperature 60 | . 26 65 Received Heat Transfer 279 | . . 279 Siege Activations . | . . . Martial Activations . | . . . Shielding Activations . | . . . Robots Disrupted . | . . . Combat Hostiles . | . . . Robots Corrupted . | . . . Combat Hostiles . | . . . Parts Fried . | . . . Impact Corruptions . | . . . Robots Melted . | . . . Combat Hostiles . | . . . Parts Melted 3 | . . 3 Heat Transferred 740 | . 74 666 Parts Sabotaged . | . . . Parts Stolen . | . . . Parts Stripped . | . . . Power Chain Reactions . | . . . Alert | -11 -10 -10 ------- Run | Yrd Mat Min Maximum Alert Level . | . . . Low Security (%) 100 | 100 100 100 Level 1 . | . . . Level 2 . | . . . Level 3 . | . . . Level 4 . | . . . Level 5 . | . . . High Security . | . . . Max Security . | . . . Peak Influence 110 | . 30 110 Initial . | . . . Average 30 | . 7 41 Influence Increases 394 | . 44 350 Destroy 0b10 Robot/C 320 | . 40 280 Destroy 0b10 Robot/NC 5 | . . 5 Destroy Leader 60 | . . 60 Allied During Kill 5 | . . 5 Successful Hack 4 | . 4 . Influence Decreases 380 | . 44 336 Time Decay 360 | . 44 316 Lost Part 20 | . . 20 Squads Dispatched . | . . . Investigation . | . . . Extermination . | . . . Reinforcement . | . . . Assault . | . . . Garrison . | . . . Intercept . | . . . Searches Triggered . | . . . Construction Impeded . | . . . Haulers Reinforced . | . . . Active Scanning Responses . | . . . Cargo Convoy Interrupts . | . . . Stealth | -11 -10 -10 --------- Run | Yrd Mat Min Distress Signals 1 | . . 1 Communications Jammed . | . . . Distress Signals . | . . . Times Spotted 22 | . 4 18 Peak Tracking Total 4 | . 3 4 Tactical Retreats . | . . . Traps | -11 -10 -10 ------- Run | Yrd Mat Min Traps Triggered . | . . . Indirectly . | . . . Trap Hack Attempts . | . . . Triggered . | . . . Disarmed . | . . . Reprogrammed . | . . . Reused . | . . . Traps Extracted . | . . . Installed . | . . . Triggered . | . . . Machines | -11 -10 -10 ---------- Run | Yrd Mat Min Machines Disabled . | . . . Max in Single Turn . | . . . Machines Repaired . | . . . Machines Dismantled . | . . . Machines Sabotaged . | . . . Overloaded Fab Kills . | . . . Hacking | -11 -10 -10 --------- Run | Yrd Mat Min Machines Accessed 2 | . 2 . Terminals 1 | . 1 . Fabricators . | . . . Repair Stations . | . . . Recycling Units 1 | . 1 . Scanalyzers . | . . . Garrison Access . | . . . Total Hacks 3 | . 3 . Successful 3 | . 3 . Failed . | . . . Catastrophic . | . . . Database Lockouts . | . . . Manual . | . . . Terminals 1 | . 1 . Fabricators . | . . . Repair Stations . | . . . Recycling Units 2 | . 2 . Scanalyzers . | . . . Garrison Access . | . . . Terminal Hacks 1 | . 1 . Locate Traps 1 | . 1 . Fabricator Hacks . | . . . Repair Station Hacks . | . . . Recycling Unit Hacks 2 | . 2 . Process 1 | . 1 . Report Inventory 1 | . 1 . Scanalyzer . | . . . Garrison Access Hacks . | . . . Unauthorized Hacks . | . . . Terminals . | . . . Fabricators . | . . . Repair Stations . | . . . Recycling Units . | . . . Scanalyzers . | . . . Garrison Access . | . . . Data Cores Recovered . | . . . Used . | . . . Hacking Detections 1 | . 1 . Full Trace Events . | . . . Feedback Events . | . . . Feedback Blocked . | . . . Robot Schematics Acquired . | . . . Robots Built . | . . . Authchips . | . . . Time . | . . . Total Robot Build Rating . | . . . Part Schematics Acquired . | . . . Parts Built . | . . . Authchips . | . . . Time . | . . . Total Part Build Rating . | . . . Part Studies Acquired . | . . . Parts Repaired . | . . . Time . | . . . Parts Recycled . | . . . Recycled Matter 85 | . 85 . Retrieved Matter . | . . . Retrieved Components . | . . . Parts Scanalyzed . | . . . Part Schematics Acquired . | . . . Parts Damaged . | . . . Bothacking | -11 -10 -10 ------------ Run | Yrd Mat Min Used RIF Installer . | . . . Robots Hacked . | . . . Non-combat . | . . . Combat . | . . . Robot Hacks Applied . | . . . Relay Couplers Released . | . . . Fabnet Peak Effective % . | . . . Robots Rewired . | . . . Allies Hacked . | . . . Hacks Repelled . | . . . Allies | -11 -10 -10 -------- Run | Yrd Mat Min Total Allies 1 | . . 1 Largest Group 1 | . . 1 Highest-Rated Group 31 | . . 31 Highest-Rated Ally 31 | . . 31 Total Orders . | . . . Ally Attacks 14 | . . 14 Total Damage 232 | . . 232 Kills 2 | . . 2 Allies Corrupted . | . . . Allies Melted . | . . . Intel | -11 -10 -10 ------- Run | Yrd Mat Min Active Infowar (turns) . | . . . Robot Analysis Total . | . . . Derelict Logs Recovered . | . . . Drone Launches . | . . . Drone Recoveries . | . . . Exploration | -11 -10 -10 ------------- Run | Yrd Mat Min Turns Passed 1013 | 80 213 720 Spaces Moved 683 | 60 162 461 Core 8 | 8 . . Treads . | . . . Legs 675 | 52 162 461 Wheels . | . . . Hover . | . . . Flight . | . . . Fastest Speed 50 | 50 120 120 Average Speed 119 | 110 120 120 Slowest Speed 120 | 120 120 120 Overloaded Moves . | . . . Propulsion Burnouts . | . . . Robots Hopped . | . . . Potential Cave-ins . | . . . Cave-ins Triggered . | . . . Exploration Rate (%) 30 | 4 27 61 Regions Visited 2 Branch Regions 1 Pre-discovered Areas 1 | . . 1 Known Exits Taken . | . . . Unknown Exits Taken 2 | 1 1 . Scrap Searched 1 | . . 1 Spaces Dug . | . . . Terrain Destroyed . | . . . Melee . | . . . Projectile . | . . . AOE . | . . . Terrain Rammed . | . . . Walls Destroyed . | . . . Machines Disabled . | . . . Actions | -11 -10 -10 --------- Run | Yrd Mat Min Total 798 | 73 169 556 Wait 12 | . . 12 Move 681 | 59 161 461 Hop . | . . . Pick Up 19 | 8 1 10 Fast Attach . | . . . Attach 17 | 6 . 11 Detach 10 | . . 10 Swap . | . . . Drop 7 | . . 7 Fire 49 | . 6 43 Melee . | . . . Ram . | . . . Kick 3 | . 1 2 Crush . | . . . Escape Stasis . | . . . Rewire . | . . . Trap . | . . . Miscellaneous . | . . . Route ------- -11/Scrapyard -10/Materials -10/Mines History --------- Turn | Location | Event 5 | -11/Scrapyard | Discovered new exit (range 16) 81 | -11/Scrapyard | Entered Materials 105 | -10/Materials | Discovered new exit (range 5) 294 | -10/Materials | Entered Mines 301 | -10/Mines | Escorted by a lone wolf Derelict 321 | -10/Mines | Learned location of Storage (-9) 329 | -10/Mines | Build established: Mutant 382 | -10/Mines | Core integrity fell below 50% 570 | -10/Mines | Found a damaged Exp. Sensor Array with a note attached 574 | -10/Mines | Found Prototype Device 743 | -10/Mines | Build established: Scavenger-Mutant 758 | -10/Mines | Core integrity fell below 20% 1014 | -10/Mines | Destroyed by S-10 Pest with Light Assault Rifle Last Messages --------------- G-47 Trooper destroyed. G-34 Mercenary destroyed. Acquired 22 matter. Acquired 23 matter. K-01 Serf collects debris. S-10 Pest destroyed. S-10 Pest knocked back. Destroyed Flight Unit. S-10 Pest destroyed. Destroyed Flight Unit. S-10 Pest destroyed. Acquired 2 matter. Acquired 6 matter. Acquired 9 matter. Acquired 11 matter. Acquired 4 matter. Carbon-fiber Leg destroyed. Lgt. Nuclear Core destroyed. Flight Unit melted. S-10 Pest destroyed. Map ----- +----------------------------------------------------+ | ?????????????????????????????????????????????????? | | ?????????????????????????????????????????????????? | | ?????????????????????????????????????????????????? | | ?????????????????????????????????????????????????? | | ?????????????????????????????????????????????????? | | ?????????????????????????????????????????????????? | | ?????????????????????????????????????????????????? | | ?????????????????????????????????????????????????? | | ?????????????????????????????????????????????????? | | ?????????????????????????????????????????????????# | | ??????????????????????????????????????????######## | | ????????????????????????????????????????### | | ???????????????????????????????????????## | | ??????????????????????????????????????## ####### | | ??????????????????????????????????????# ##?????# | | ?????????????????????????????????????## ##?????? | | ????????????????????????????????????## #?????? | | ??????????????????????????????####### #?????? | | ???????????????????????????#### ## ##?????? | | ??????????????????????????## ##??????? | | ????????????????????????### ##???????? | | ??????????????????????### t #????????? | | ?????????????????????## ### #????????? | | ?????????????????????# ##?## #???????## | | ?????????????????????# ##???# #?????## | | ?????????????????????# %@%#????# #????# | | ?????????????????????##=%=##????# #???# | | ??????????????????????##%##?????## #???## | | ???????????????????????#=#???????# #????## | | ???????????????????????#s#??????? ##?????? | | ???????????????????????#[#?????? ##??????? | | ??????????????????# #### #?????? ##???????? | | ??????????????????# %#????? #????????? | | ??????????????????###### #???? ##????????? | | ????????? ##### #???? ##?????????? | | ????????? #???? #??????????? | | ??????????????# ###### #?????? ##??????????? | | ???????????????????????# #??????? ????????????? | | ???????????????????????# #???????????????????????? | | ????????????????####???# #???????????????####????? | | ???????????????## ##??#%#??????????????## ##???? | | ???????????????# ####=########???????# ##### | | ???????????????# %!=!% = ##??????# | | ???????????????# #####[[! %* ###?????# | | ???????????##### ##??##=## % ####### | | ???????????# ### #???# ## ## | | ???????????#=% #???# ### # | | ???????????###### #???# #?#### ### ## | | ????????????????# ##???# #????####?## ##? | | ????????????????####????# #??????????# ##?? | +----------------------------------------------------+ Best States ------------- Heat Dissipation 35 Energy Generation 14 Energy Capacity 250 Matter Stores 300 Matter Capacity 300 Sight Range 16 Terrain Scan Density 10 Evasion (%) 55 Item Schematics ----------------- None Robot Schematics ------------------ None Fabricated ------------ Nothing Repaired ---------- Nothing Studied --------- None Alien Tech Used ----------------- None Achievements -------------- Backstab Challenges ------------ None Game ------ Seed FlyingTerrorNukerbomber Manual? 0 Play Time 00:14:45 Cumulative 14.8 hours Start 2026.03.16 @ 11:52:19 End 2026.03.16 @ 12:08:47 Sessions 1 Manual Loads 0 Difficulty Rogue Special Mode None Game No. 49 Rogue 49 Adventurer 0 Explorer 0 Win Type - Total 0 Types 0/0/0/0/0/0/0/0/0/0 Lore% 5 Gallery% 13 Achievement% 11 Wizard Run 0 Options --------- Layout 1 ASCII 0 Keyboard 1 Movement Numpad Keybinds 0 Fullscreen 1 Font 32/SmallcapsGlow Map View 50x35 Zoom Use 0% Tactical HUD 0 Map Filters NONE Filters NONE Steam 1 RUN: 7ea5f5d8-0722-48f8-9fc8-1a17b551cdc1